bitfinex/quotes_SOLUSD_20250226
["timestamp","ask_amount","ask_price","bid_price","bid_amount"]
[1740608081424,82.9,136.88,136.81,18.64964886]
[1740608081728,82.9,136.92,136.82,0.56864628]
[1740608082530,82.9,136.92,136.83,7.3083]
[1740608083235,82.9,136.92,136.83,8.7709265]
[1740608083535,9.063,136.93,136.84,18.64964886]
[1740608083729,9.063,136.93,136.86,18.64964886]
[1740608083730,0.063,136.93,136.86,18.64964886]
[1740608084310,0.063,136.93,136.86,25.25184886]
[1740608084506,0.063,136.93,136.87,7.3062]
[1740608085130,0.063,136.93,136.88,19.21829514]
[1740608085328,0.063,136.93,136.87,226.5062]
[1740608085717,0.063,136.93,136.86,13.9088]
[1740608085911,0.063,136.93,136.87,18.64964886]
[1740608086528,0.063,136.93,136.86,6.6022]
[1740608086838,0.063,136.93,136.85,7.3071]
[1740608088020,82.9,136.92,136.83,83.8626265]
[1740608088221,82.9,136.92,136.84,7.3078]
[1740608088635,82.9,136.92,136.83,91.1709265]
[1740608088818,83.9,136.91,136.83,1.4626265]
[1740608089013,83.9,136.9,136.83,1.4626265]
[1740608089218,89.5277,136.9,136.83,1.4626265]
[1740608090150,90.5277,136.9,136.83,1.4626265]
[1740608090363,104.46785371,136.89,136.83,1.4626265]
[1740608090525,19.64964886,136.87,136.83,1.4626265]
[1740608090860,82.9,136.86,136.83,1.4626265]
[1740608091743,6.6277,136.9,136.83,1.4626265]
[1740608094551,18.64964886,136.89,136.83,1.4626265]
[1740608094747,22.56783294,136.89,136.83,1.4626265]
[1740608095437,1.0,136.86,136.83,1.4626265]
[1740608095642,82.9,136.85,136.83,1.4626265]
[1740608098633,82.9,136.89,136.83,1.4626265]
[1740608100036,2.0,136.87,136.83,1.4626265]
[1740608100240,104.46831138,136.86,136.83,1.4926265]
[1740608100440,82.9,136.85,136.83,1.4926265]
[1740608100837,82.9,136.89,136.83,1.4926265]
[1740608101036,1.0,136.86,136.83,1.4926265]
[1740608101251,6.6277,136.9,136.75,0.03]
[1740608101252,20.64964886,136.82,136.75,0.03]
[1740608101451,18.64964886,136.8,136.75,0.03]
[1740608101631,2.0,136.8,136.75,0.03]
[1740608101831,19.64964886,136.76,136.75,0.03]
[1740608102029,1.0,136.73,136.7,0.8628467]
[1740608102274,101.54964886,136.72,136.7,0.8628467]
[1740608102571,82.9,136.72,136.7,0.8628467]
[1740608103049,2.0,136.66,136.59,0.8628467]
[1740608103434,1.0,136.64,136.59,0.8628467]
[1740608103831,19.64964886,136.65,136.59,0.8628467]
[1740608104036,28.62964886,136.65,136.59,0.8628467]
[1740608104236,1.0,136.62,136.59,0.8628467]
[1740608104448,2.0,136.62,136.59,0.8628467]
[1740608104847,2.0,136.62,136.59,0.3628467]
[1740608105063,1.0,136.62,136.59,0.3628467]
[1740608105265,1.0,136.63,136.59,0.3628467]
[1740608105464,82.9,136.64,136.59,0.3628467]
[1740608105664,1.0,136.68,136.59,0.3628467]
[1740608106166,95.80114098,136.7,136.59,0.3628467]
[1740608106333,1.0,136.69,136.59,0.3628467]
[1740608106658,12.90116151,136.7,136.59,137.1628467]
[1740608107046,8.98,136.7,136.59,137.1628467]
[1740608107242,84.82098906,136.73,136.6,20.81819514]
[1740608107543,10.5858,136.76,136.64,0.56864628]
[1740608107734,8.98,136.76,136.64,0.56864628]
[1740608107934,1.0,136.77,136.64,0.56864628]
[1740608108251,1.0,136.74,136.61,97.956]
[1740608108451,84.9,136.76,136.65,18.64964886]
[1740608108674,82.9,136.76,136.67,18.64964886]
[1740608109032,15.5327,136.79,136.67,18.64964886]
[1740608109336,82.9,136.78,136.67,27.62964886]
[1740608109534,18.64964886,136.75,136.65,136.8]
[1740608109733,82.9,136.74,136.64,89.7184]
[1740608109948,83.9,136.73,136.63,8.98]
[1740608110135,20.64964886,136.72,136.63,8.98]
[1740608110448,83.9,136.71,136.61,6.576]
[1740608110651,83.9,136.71,136.62,18.64964886]
[1740608110866,1.0,136.7,136.61,6.576]
[1740608111232,85.82075575,136.71,136.6,83.9999]
[1740608111440,82.9,136.7,136.6,228.1203]
[1740608111655,82.9,136.7,136.61,19.21829514]
[1740608112151,84.8208127,136.72,136.6,91.3203]
[1740608112345,82.9,136.71,136.6,7.3204]
[1740608112545,84.82086454,136.7,136.59,0.3628467]
[1740608112755,1.0,136.69,136.59,0.3628467]
[1740608112957,18.64964886,136.64,136.59,0.3628467]
[1740608113248,82.9,136.63,136.59,0.3628467]
[1740608114352,82.9,136.65,136.59,0.3628467]
[1740608115086,82.9,136.68,136.6,0.56864628]
[1740608115274,82.9,136.71,136.6,82.96864628]
[1740608115658,82.9,136.71,136.62,18.64964886]
[1740608116384,82.9,136.71,136.6,82.96864628]
[1740608116549,104.47043995,136.7,136.59,0.3628467]
[1740608116955,104.47043995,136.7,136.59,19.01249556]
[1740608117184,82.9,136.69,136.61,18.64964886]
[1740608117392,82.9,136.69,136.59,0.3628467]
[1740608117578,84.82136038,136.69,136.59,0.3628467]
[1740608117868,82.9,136.69,136.59,0.3628467]
[1740608118069,82.9,136.69,136.6,18.64964886]
[1740608118375,82.9,136.69,136.61,0.28432314]
[1740608118564,82.9,136.72,136.62,0.28432314]
[1740608118761,82.9,136.74,136.65,0.28432314]
[1740608118951,82.9,136.74,136.65,82.4]
[1740608119151,104.47001894,136.73,136.64,8.98]
[1740608119377,82.9,136.72,136.62,1.5839]
[1740608119554,82.9,136.71,136.62,1.5839]
[1740608119763,82.9,136.71,136.62,8.9034]
[1740608119964,82.9,136.7,136.6,7.3206]
[1740608120362,82.9,136.7,136.61,18.64964886]
[1740608120769,82.9,136.7,136.6,219.2]
[1740608121370,84.82099302,136.69,136.6,73.31075394]
[1740608121563,82.9,136.68,136.59,9.3428467]
[1740608122275,82.9,136.67,136.59,9.3428467]
[1740608122475,82.9,136.67,136.59,0.3628467]
[1740608123360,84.82144757,136.66,136.59,0.3628467]
[1740608123577,82.9,136.65,136.59,0.3628467]
[1740608123780,103.47143731,136.64,136.59,0.3628467]
[1740608123980,84.82178845,136.64,136.59,0.3628467]
[1740608124459,82.9,136.64,136.59,0.3928467]
[1740608124863,82.9,136.66,136.59,0.3928467]
[1740608126278,101.54964886,136.65,136.59,0.3928467]
[1740608126488,82.9,136.64,136.59,0.3928467]
[1740608128973,82.9,136.67,136.59,0.3928467]
[1740608129568,82.9,136.7,136.63,18.64964886]
[1740608129785,0.063,136.71,136.63,99.2791028]
[1740608129990,0.063,136.71,136.65,18.64964886]
[1740608130373,0.063,136.71,136.67,18.64964886]
[1740608130580,0.063,136.71,136.69,18.64964886]
[1740608130768,0.063,136.71,136.7,9.54864628]
[1740608130969,0.063,136.71,136.7,82.29075394]
[1740608131394,82.9,136.82,136.73,0.56864628]
[1740608131607,82.9,136.82,136.74,18.64964886]
[1740608131771,82.9,136.82,136.74,25.96234886]
[1740608132470,82.9,136.82,136.73,73.31075394]
[1740608133770,82.9,136.82,136.73,80.62425394]
[1740608134279,82.9,136.82,136.74,18.64964886]
[1740608134477,82.9,136.81,136.72,0.28432314]
[1740608134666,82.9,136.81,136.72,0.42648471]
[1740608134871,82.9,136.84,136.74,0.42648471]
[1740608135296,82.9,136.84,136.76,0.42648471]
[1740608135487,0.063,136.85,136.78,0.42648471]
[1740608135984,0.063,136.85,136.79,7.3104]
[1740608136187,0.063,136.85,136.8,18.64964886]
[1740608136369,0.063,136.85,136.82,18.64964886]
[1740608136574,0.063,136.85,136.82,91.9604028]
[1740608137196,0.063,136.85,136.82,73.31075394]
[1740608137401,0.063,136.85,136.8,73.31075394]
[1740608137601,0.063,136.85,136.81,18.64964886]
[1740608138301,0.063,136.85,136.8,73.31075394]
[1740608138785,0.063,136.85,136.81,18.64964886]
[1740608138981,0.063,136.85,136.81,91.9604028]
[1740608139874,0.063,136.85,136.81,73.31075394]
[1740608140078,0.063,136.85,136.8,6.5705]
[1740608140280,0.063,136.85,136.78,196.69075394]
[1740608140496,0.063,136.85,136.83,1.0]
[1740608140698,0.063,136.93,136.86,19.07613357]
[1740608140879,0.063,136.93,136.9,0.42648471]
[1740608141084,0.063,136.93,136.92,19.21829514]
[1740608141886,0.8628467,136.98,136.97,1.56864628]
[1740608142085,0.8628467,136.98,136.97,82.85940022]
[1740608142289,0.8628467,136.98,136.96,8.98]
[1740608142491,0.8628467,136.98,136.94,91.9604028]
[1740608142703,0.8628467,136.98,136.94,73.31075394]
[1740608143184,0.8628467,136.98,136.95,18.64964886]
[1740608143903,0.063,137.04,136.97,25.66804886]
[1740608144202,0.063,137.04,137.03,0.56864628]
[1740608144407,0.063,137.04,137.03,219.07075394]
[1740608144700,0.063,137.04,137.03,238.28904908]
[1740608145290,0.063,137.04,137.03,239.28904908]
[1740608145681,0.063,137.07,137.04,1.56864628]
[1740608145887,0.063,137.07,137.06,19.21829514]
[1740608146086,0.063,137.07,137.06,229.32904908]
[1740608146498,0.063,137.07,137.03,82.27075394]
[1740608147203,0.063,137.07,137.04,18.64964886]
[1740608147996,0.063,137.07,137.04,73.31075394]
[1740608148384,0.063,137.07,137.02,123.22]
[1740608149704,0.063,137.07,137.03,18.64964886]
[1740608150013,0.063,137.07,137.06,18.64964886]
[1740608150222,0.063,137.07,137.06,19.21829514]
[1740608150386,0.8628467,137.09,137.07,0.56864628]
[1740608150582,0.063,137.18,137.1,1.56864628]
[1740608150786,0.063,137.18,137.14,0.56864628]
[1740608150996,0.063,137.18,137.14,73.87940022]
[1740608151200,0.063,137.18,137.14,91.9604028]
[1740608151704,0.063,137.18,137.14,73.31075394]
[1740608151909,0.063,137.18,137.13,123.12]
[1740608152491,82.9,137.17,137.13,123.12]
[1740608154109,0.063,137.18,137.13,132.08]
[1740608154292,0.063,137.18,137.14,18.64964886]
[1740608154492,0.063,137.18,137.13,132.08]
[1740608154887,0.063,137.18,137.13,123.12]
[1740608155794,0.063,137.18,137.1,18.64964886]
[1740608155991,0.063,137.18,137.09,82.27075394]
[1740608156896,0.063,137.18,137.1,19.21829514]
[1740608157211,0.063,137.18,137.1,18.64964886]
[1740608157591,0.063,137.18,137.09,82.27075394]
[1740608158087,0.063,137.18,137.1,48.90344886]
[1740608158304,0.063,137.18,137.09,82.27075394]
[1740608159411,0.063,137.18,137.1,18.64964886]
[1740608159617,0.063,137.18,137.09,82.27075394]
[1740608159910,0.063,137.18,137.1,18.64964886]
[1740608160621,0.063,137.18,137.09,82.27075394]
[1740608160799,0.063,137.18,137.1,0.56864628]
[1740608160999,0.063,137.18,137.09,219.07075394]
[1740608161209,0.063,137.18,137.1,0.56864628]
[1740608161542,0.063,137.18,137.12,0.56864628]
[1740608161708,0.063,137.18,137.14,0.42648471]
[1740608162033,0.063,137.18,137.14,73.73723865]
[1740608162401,0.063,137.18,137.14,229.32904908]
[1740608162629,0.063,137.18,137.14,210.11075394]
[1740608163515,0.063,137.18,137.14,228.7604028]
[1740608163901,0.063,137.18,137.15,8.94]
[1740608164719,0.063,137.18,137.11,82.25075394]
[1740608164918,0.063,137.18,137.12,18.64964886]
[1740608165417,0.063,137.18,137.13,123.40648471]
[1740608165599,0.063,137.18,137.14,0.14216157]
[1740608165799,0.063,137.18,137.15,19.07613357]
[1740608166017,0.063,137.18,137.16,0.14216157]
[1740608166222,0.063,137.18,137.17,35.30633357]
[1740608166416,0.063,137.18,137.17,245.41708751]
[1740608167201,0.063,137.18,137.17,246.55924908]
[1740608167721,0.063,137.22,137.17,246.55924908]
[1740608167722,0.063,137.22,137.2,0.56864628]
[1740608167906,0.063,137.22,137.21,19.07613357]
[1740608168223,0.063,137.22,137.21,230.32904908]
[1740608168447,0.063,137.22,137.21,237.62754908]
[1740608168629,0.063,137.22,137.21,239.25934908]
[1740608168926,0.0001,137.22,137.21,239.25934908]
[1740608169302,0.063,137.25,137.24,0.56864628]
[1740608169503,0.063,137.25,137.24,342.55940022]
[1740608169823,0.8628467,137.31,137.26,1.56864628]
[1740608170014,0.8628467,137.31,137.28,0.56864628]
[1740608170223,0.8628467,137.31,137.28,19.21829514]
[1740608170523,0.8628467,137.31,137.28,229.32904908]
[1740608170730,0.8628467,137.31,137.3,0.56864628]
[1740608170945,0.8628467,137.31,137.3,238.26904908]
[1740608171106,0.8628467,137.31,137.3,239.26904908]
[1740608171302,0.8628467,137.31,137.3,246.55234908]
[1740608171721,0.8628467,137.31,137.3,247.55234908]
[1740608171931,0.8628467,137.31,137.25,8.94]
[1740608172116,0.8628467,137.31,137.26,17.2253]
[1740608172316,0.8628467,137.31,137.29,0.14216157]
[1740608172626,0.8628467,137.31,137.3,0.42648471]
[1740608172836,0.8628467,137.31,137.27,136.8]
[1740608173509,0.8628467,137.31,137.24,73.31075394]
[1740608173706,0.8628467,137.31,137.22,130.1874]
[1740608173908,0.8628467,137.31,137.25,22.96549145]
[1740608174124,0.8628467,137.31,137.28,0.14216157]
[1740608174330,0.8628467,137.31,137.28,145.74]
[1740608174705,0.8628467,137.31,137.23,219.05075394]
[1740608174916,0.8628467,137.31,137.24,3.66711864]
[1740608175207,0.8628467,137.31,137.25,26.219772]
[1740608175409,0.8628467,137.31,137.24,3.66711864]
[1740608175607,0.9258467,137.31,137.24,3.66711864]
[1740608175828,0.9258467,137.31,137.26,0.42648471]
[1740608176341,0.9258467,137.31,137.27,18.79181043]
[1740608176818,0.9258467,137.31,137.29,0.14216157]
[1740608177023,0.9258467,137.31,137.3,18.79181043]
[1740608177406,0.9258467,137.31,137.3,236.61234908]
[1740608178627,0.9258467,137.31,137.3,236.47018751]
[1740608178833,0.9258467,137.31,137.29,8.92]
[1740608179028,0.9258467,137.31,137.29,16.2037]
[1740608179218,0.9258467,137.31,137.3,18.64964886]
[1740608179409,0.9258467,137.31,137.29,8.92]
[1740608180112,0.9258467,137.31,137.26,73.31075394]
[1740608180320,0.9258467,137.31,137.26,8.92]
[1740608180526,0.9258467,137.31,137.24,10.95341864]
[1740608180834,0.9258467,137.31,137.24,19.87341864]
[1740608181134,0.9258467,137.31,137.25,18.64964886]
[1740608181316,0.9258467,137.31,137.24,19.87341864]
[1740608181914,0.9258467,137.31,137.24,8.92]
[1740608182736,0.9258467,137.31,137.22,225.85704753]
[1740608182915,0.9258467,137.31,137.22,234.77704753]
[1740608183125,0.9258467,137.31,137.22,227.48974753]
[1740608183625,0.9258467,137.31,137.23,18.64964886]
[1740608183829,6.1118,137.3,137.22,135.52934473]
[1740608184031,6.1118,137.3,137.22,126.60934473]
[1740608184335,9.02397003,137.3,137.21,73.31075394]
[1740608184638,95.03241406,137.3,137.2,8.92]
[1740608184940,82.9,137.29,137.2,8.92]
[1740608185134,1.0,137.27,137.19,122.82]
[1740608185339,85.8132606,137.26,137.19,122.82]
[1740608185519,19.64964886,137.25,137.19,122.82]
[1740608185719,86.81341358,137.24,137.19,122.82]
[1740608185921,82.9,137.23,137.19,122.82]
[1740608186328,82.9,137.23,137.13,76.89723246]
[1740608186721,6.339,137.22,137.13,76.89723246]
[1740608187827,9.25259254,137.22,137.13,73.31075394]
[1740608188029,10.25259254,137.22,137.13,73.31075394]
[1740608188539,10.25259254,137.22,137.1,131.78]
[1740608188540,82.9,137.21,137.1,131.78]
[1740608188730,82.9,137.21,137.12,19.07613357]
[1740608188931,82.9,137.21,137.13,0.14216157]
[1740608189134,7.8686,137.22,137.13,0.14216157]
[1740608189135,7.8686,137.22,137.14,0.42648471]
[1740608189336,7.8686,137.22,137.15,18.64964886]
[1740608189533,6.339,137.22,137.16,0.42648471]
[1740608189730,6.339,137.22,137.17,18.64964886]
[1740608190042,6.339,137.22,137.16,82.23075394]
[1740608190424,6.339,137.22,137.16,8.92]
[1740608192029,90.239,137.22,137.12,8.92]
[1740608192225,89.239,137.22,137.12,8.92]
[1740608192458,89.239,137.22,137.13,18.64964886]
[1740608193730,18.64964886,137.19,137.1,259.66]
[1740608193930,82.9,137.18,137.1,122.86]
[1740608194736,82.9,137.17,137.1,122.86]
[1740608195253,82.9,137.19,137.1,130.1536]
[1740608195439,82.9,137.19,137.1,139.0736]
[1740608195630,82.9,137.19,137.11,18.64964886]
[1740608195829,82.9,137.21,137.11,91.9604028]
[1740608196329,82.9,137.21,137.12,7.2928]
[1740608196522,1.5842,137.27,137.13,19.21829514]
[1740608196727,1.5842,137.27,137.15,19.21829514]
[1740608196942,1.5842,137.27,137.17,0.56864628]
[1740608197149,84.4842,137.27,137.18,8.92]
[1740608197734,84.4842,137.27,137.19,25.93874886]
[1740608198733,6.6297,137.28,137.2,7.2886]
[1740608199835,9.5423028,137.28,137.18,8.92]
[1740608200144,6.92915917,137.31,137.21,0.56864628]
[1740608200145,0.9258467,137.31,137.21,0.56864628]
[1740608200451,0.9258467,137.31,137.22,18.64964886]
[1740608200745,0.9258467,137.31,137.22,141.52964886]
[1740608201344,0.063,137.29,137.24,18.64964886]
[1740608201532,0.063,137.29,137.24,27.56964886]
[1740608201728,0.063,137.29,137.22,122.88]
[1740608201947,21.62512377,137.29,137.22,122.88]
[1740608202149,1.0,137.28,137.22,122.88]
[1740608202337,18.64964886,137.28,137.22,122.88]
[1740608202533,19.64964886,137.28,137.22,122.88]
[1740608202735,20.64964886,137.28,137.22,122.88]
[1740608202934,19.64964886,137.28,137.22,122.88]
[1740608204233,20.64964886,137.28,137.22,122.88]
[1740608204542,19.64964886,137.28,137.22,122.88]
[1740608204744,0.063,137.29,137.22,122.88]
[1740608204974,2.0,137.28,137.22,122.88]
[1740608205268,22.62539737,137.29,137.22,122.88]
[1740608205437,2.0,137.28,137.22,122.88]
[1740608205627,18.64964886,137.23,137.16,0.03]
[1740608205831,84.81352879,137.22,137.16,0.03]
[1740608206252,82.9,137.22,137.16,0.03]
[1740608206829,89.0725,137.23,137.16,0.03]
[1740608207427,83.9,137.22,137.16,0.03]
[1740608207857,82.9,137.24,137.16,0.03]
[1740608208168,18.64964886,137.23,137.16,0.03]
[1740608208369,19.64964886,137.23,137.16,0.03]
[1740608208557,84.81373656,137.22,137.16,0.03]
[1740608208761,82.9,137.24,137.16,0.03]
[1740608209068,90.7247,137.27,137.17,18.64964886]
[1740608209365,92.63773819,137.27,137.17,18.64964886]
[1740608209571,6.1725,137.27,137.17,18.64964886]
[1740608209728,6.1725,137.27,137.19,18.64964886]
[1740608210654,8.983,137.29,137.2,7.2886]
[1740608211578,0.063,137.29,137.21,19.21829514]
[1740608211737,0.063,137.29,137.21,28.13829514]
[1740608212043,0.063,137.29,137.21,247.33829514]
[1740608212245,0.063,137.29,137.22,0.56864628]
[1740608212551,0.063,137.29,137.21,228.12]
[1740608212753,0.063,137.29,137.22,18.64964886]
[1740608212955,0.063,137.29,137.24,18.64964886]
[1740608213139,0.063,137.27,137.24,18.64964886]
[1740608213330,0.063,137.27,137.26,18.64964886]
[1740608213536,0.063,137.27,137.26,244.72109514]
[1740608214234,0.063,137.29,137.27,0.56864628]
[1740608214434,0.063,137.29,137.28,19.21829514]
[1740608214636,0.063,137.29,137.28,26.50259514]
[1740608216172,0.063,137.29,137.28,245.70259514]
[1740608216384,0.9258467,137.31,137.3,18.64964886]
[1740608216547,0.9258467,137.31,137.27,17.788]
[1740608216940,0.9258467,137.31,137.3,18.64964886]
[1740608217355,0.9258467,137.31,137.29,219.2]
[1740608217878,0.9258467,137.31,137.28,18.64964886]
[1740608218387,0.9258467,137.31,137.28,0.28432314]
[1740608218687,0.9258467,137.31,137.27,17.788]
[1740608218977,0.9258467,137.31,137.25,342.08]
[1740608218978,0.9258467,137.31,137.25,122.88]
[1740608222379,0.9258467,137.31,137.25,205.28]
[1740608223894,0.9258467,137.31,137.26,19.21829514]
[1740608224177,0.9258467,137.31,137.26,238.41829514]
[1740608224378,0.9258467,137.31,137.29,24.75514886]
[1740608224677,0.9258467,137.31,137.29,82.4]
[1740608224868,0.9258467,137.31,137.3,19.21829514]
[1740608225378,0.9258467,137.31,137.3,18.64964886]
[1740608225988,0.9258467,137.31,137.29,82.4]
[1740608226359,0.9258467,137.31,137.3,26.50159514]
[1740608226576,0.9258467,137.31,137.3,245.70159514]
[1740608226891,0.063,137.36,137.3,263.90989514]
[1740608227600,0.063,137.36,137.3,300.32649514]
[1740608227761,0.063,137.36,137.3,324.29649514]
[1740608227961,0.063,137.36,137.33,25.44779514]
[1740608228282,0.063,137.4,137.37,0.56864628]
[1740608228583,0.063,137.4,137.39,0.56864628]
[1740608228782,0.063,137.4,137.39,82.4]
[1740608228963,0.063,137.4,137.39,101.61829514]
[1740608230181,0.063,137.4,137.39,108.89679514]
[1740608230478,0.063,137.4,137.39,82.4]
[1740608230678,0.063,137.4,137.37,7.2792]
[1740608230679,0.063,137.4,137.36,122.82]
[1740608231801,0.063,137.4,137.28,86.00343705]
[1740608231802,90.1766,137.39,137.28,86.00343705]
[1740608232082,90.1766,137.39,137.26,214.08]
[1740608232083,1.0,137.35,137.26,214.08]
[1740608232261,85.81202147,137.35,137.26,131.68]
[1740608232466,1.0,137.34,137.26,131.68]
[1740608232692,82.9,137.33,137.26,131.68]
[1740608233183,82.9,137.32,137.26,131.68]
[1740608233383,82.9,137.31,137.26,131.68]
[1740608233885,82.9,137.31,137.26,122.78]
[1740608236185,1.91209667,137.36,137.27,18.64964886]
[1740608236186,89.84739026,137.36,137.27,18.64964886]
[1740608236388,82.9,137.35,137.27,18.64964886]
[1740608236790,84.5037,137.38,137.29,18.64964886]
[1740608237362,85.5037,137.38,137.28,8.9]
[1740608237569,1.0,137.36,137.26,122.78]
[1740608237773,85.81160131,137.37,137.26,122.78]
[1740608238067,82.9,137.36,137.26,130.0652]
[1740608238596,82.9,137.36,137.27,18.64964886]
[1740608238764,82.9,137.36,137.26,122.78]
[1740608238969,82.9,137.36,137.26,130.0652]
[1740608239188,82.9,137.36,137.27,18.64964886]
[1740608240065,82.9,137.37,137.27,101.04964886]
[1740608240271,82.963,137.4,137.29,18.64964886]
[1740608240571,82.963,137.4,137.31,18.64964886]
[1740608241287,0.14216157,137.39,137.3,8.9]
[1740608241588,82.9,137.39,137.31,18.64964886]
[1740608242385,82.9,137.39,137.32,0.42648471]
[1740608244371,82.9,137.38,137.3,8.9]
[1740608244777,82.9,137.38,137.31,18.79181043]
[1740608245390,82.9,137.38,137.3,8.9]
[1740608245706,1.14216157,137.35,137.26,131.68]
[1740608245905,82.9,137.34,137.26,131.68]
[1740608247199,82.9,137.34,137.27,18.64964886]
[1740608247494,82.9,137.34,137.28,0.42648471]
[1740608247674,82.9,137.34,137.26,131.68]
[1740608247876,82.9,137.34,137.27,18.64964886]
[1740608248602,0.14216157,137.31,137.26,122.78]
[1740608248793,82.9,137.3,137.26,122.78]
[1740608248991,82.9,137.33,137.26,122.78]
[1740608249508,82.9,137.33,137.27,18.64964886]
[1740608250583,0.42648471,137.32,137.26,122.78]
[1740608250801,0.14216157,137.3,137.26,122.78]
[1740608251019,82.9,137.31,137.26,122.78]
[1740608251187,0.14216157,137.3,137.26,122.78]
[1740608251386,82.9,137.31,137.26,122.78]
[1740608252192,0.14216157,137.3,137.26,122.78]
[1740608253891,82.9,137.29,137.26,122.78]
[1740608254198,83.04216157,137.28,137.26,122.78]
[1740608254387,83.04216157,137.28,137.25,0.063]
[1740608254388,82.9,137.27,137.25,0.063]
[1740608255589,83.04216157,137.26,137.16,0.03]
[1740608255909,2.0,137.21,137.16,0.03]
[1740608256097,84.81405407,137.2,137.16,0.03]
[1740608256805,19.933972,137.16,137.12,0.063]
[1740608257109,0.14216157,137.14,137.12,0.063]
[1740608257295,6.16588041,137.14,137.12,0.063]
[1740608258189,82.9,137.15,137.12,0.063]
[1740608259405,83.32648471,137.14,137.12,0.063]
[1740608261021,83.04216157,137.14,137.12,0.063]
[1740608261793,86.24134446,137.13,137.12,0.063]
[1740608262006,21.99099332,137.13,137.12,0.063]
[1740608263313,20.64964886,137.12,137.11,0.03]
[1740608263518,2.0,137.1,137.09,0.03]
[1740608263817,3.91570599,137.1,137.09,0.0001]
[1740608264011,2.91570599,137.1,137.09,0.0001]
[1740608264209,22.56535485,137.1,137.09,0.0001]
[1740608264722,0.14216157,137.06,137.03,0.8928467]
[1740608264905,0.14216157,137.05,137.03,0.8928467]
[1740608265219,2.20052527,137.04,137.03,0.8928467]
[1740608265401,21.85017413,137.04,137.03,0.8928467]
[1740608266207,22.85017413,137.04,137.03,0.3735467]
[1740608266595,20.933972,137.03,136.98,0.03]
[1740608266995,2.34317635,137.03,136.98,0.03]
[1740608267319,0.14216157,137.03,136.98,0.03]
[1740608267695,1.91607751,137.03,136.98,0.03]
[1740608267896,16.9224,137.07,136.98,0.03]
[1740608268097,1.91610636,137.06,136.98,0.03]
[1740608268305,0.14216157,137.05,136.98,0.03]
[1740608268504,19.79181043,137.05,136.98,0.03]
[1740608268708,1.91637923,137.06,136.98,0.03]
[1740608268903,0.14216157,137.05,136.98,0.03]
[1740608269117,0.14216157,137.03,136.98,0.03]
[1740608269514,1.91629352,137.06,136.98,0.03]
[1740608269714,7.0224,137.07,136.98,0.03]
[1740608270023,0.14216157,137.05,136.98,0.03]
[1740608270399,2.91600523,137.06,136.98,0.03]
[1740608270702,1.91600523,137.06,136.98,0.03]
[1740608271014,2.91600523,137.06,136.98,0.03]
[1740608271221,0.42648471,137.05,136.98,0.03]
[1740608271828,0.42648471,137.03,136.98,0.03]
[1740608272338,82.9,137.06,136.98,0.03]
[1740608272508,82.9,137.05,136.98,0.03]
[1740608272823,82.963,137.05,136.98,0.03]
[1740608274238,82.9,137.04,136.98,0.03]
[1740608275105,0.063,137.05,136.98,0.03]
[1740608275510,0.063,137.05,136.98,18.67964886]
[1740608275707,0.063,137.05,137.0,25.03834886]
[1740608276036,0.063,137.05,137.01,0.56864628]
[1740608276234,0.063,137.05,137.02,18.67964886]
[1740608276443,0.063,137.05,137.02,0.03]
[1740608276940,82.963,137.05,137.02,0.03]
[1740608279233,0.063,137.05,137.02,0.59864628]
[1740608279828,0.063,137.05,137.03,18.64964886]
[1740608282145,0.063,137.05,137.04,19.21829514]
[1740608282338,0.063,137.05,137.04,18.64964886]